bitfinex-derivatives/quotes_SOLF0:USTF0_20260117
["timestamp","ask_amount","ask_price","bid_price","bid_amount"]
[1768692998517,9.3361488,143.92,143.87,3.19865317]
[1768693003509,9.3363488,143.91,143.85,4.927503]
[1768693003710,3.0802488,143.9,143.83,4.927503]
[1768693003906,3.0802488,143.89,143.83,3.19589554]
[1768693004415,0.05334078,143.88,143.83,3.19589554]
[1768693005405,6.31084078,143.88,143.83,3.19589554]
[1768693012809,0.05334078,143.88,143.83,3.19589554]
[1768693033138,3.20252247,143.88,143.83,3.19589554]
[1768693039357,0.05334078,143.88,143.83,3.19589554]
[1768693040660,0.05334078,143.88,143.79,3.05309387]
[1768693040661,9.40708169,143.87,143.79,3.05309387]
[1768693040957,9.40708169,143.87,143.8,3.05309387]
[1768693041656,0.05175407,143.85,143.8,3.05309387]
[1768693060166,4.86405304,143.85,143.8,3.05309387]
[1768693060552,0.05175407,143.85,143.78,3.09244699]
[1768693061159,0.05175407,143.85,143.8,3.09244699]
[1768693090391,0.05175407,143.85,143.8,9.35324699]
[1768693090682,3.15264834,143.91,143.83,3.09378956]
[1768693091786,9.40884834,143.91,143.84,3.09378956]
[1768693091988,9.40884834,143.91,143.86,0.04901569]
[1768693093387,3.15264834,143.9,143.86,0.04901569]
[1768693103695,4.7442569,143.92,143.86,3.12496601]
[1768693103898,3.01097534,143.91,143.86,0.04901569]
[1768693104195,4.7442569,143.9,143.86,0.04901569]
[1768693105588,11.0008569,143.9,143.86,0.04901569]
[1768693105795,3.0620381,143.89,143.83,3.07595032]
[1768693123420,3.0620381,143.89,143.81,1.73270726]
[1768693123421,3.20153981,143.88,143.81,3.03231953]
[1768693123720,3.20153981,143.87,143.81,3.03231953]
[1768693124319,0.04760964,143.85,143.81,3.03231953]
[1768693132515,6.2577,143.88,143.81,3.03231953]
[1768693133420,9.34052639,143.88,143.81,3.03231953]
[1768693137834,6.2579,143.87,143.81,3.03231953]
[1768693138427,9.34072639,143.87,143.81,3.03231953]
[1768693140329,3.08282639,143.86,143.81,3.03231953]
[1768693140929,9.34112639,143.86,143.81,3.03231953]
[1768693141134,9.34112639,143.86,143.79,4.8390204]
[1768693143940,3.08282639,143.85,143.79,4.8390204]
[1768693145640,3.08282639,143.85,143.79,3.10631314]
[1768693152736,9.34172639,143.85,143.79,3.10631314]
[1768693152937,11.07443365,143.85,143.79,3.10631314]
[1768693157645,3.08282639,143.84,143.79,3.10631314]
[1768693157948,3.08282639,143.83,143.77,3.10631314]
[1768693158741,9.34242639,143.83,143.77,3.10631314]
[1768693167944,9.34242639,143.83,143.77,4.8390204]
[1768693176961,9.34242639,143.83,143.77,3.10631314]
[1768693177150,9.50619913,143.82,143.76,262.82]
[1768693177355,3.24619913,143.82,143.76,262.82]
[1768693177871,3.24619913,143.82,143.76,265.84970524]
[1768693178948,3.24619913,143.82,143.76,3.02970524]
[1768693179360,3.24619913,143.82,143.76,4.76380348]
[1768693179762,3.24619913,143.82,143.76,11.02630348]
[1768693182457,3.24619913,143.82,143.76,3.02970524]
[1768693182662,3.24619913,143.81,143.76,3.02970524]
[1768693192074,3.21086502,143.8,143.74,9.53754153]
[1768693201780,3.21086502,143.8,143.75,3.27434153]
[1768693203476,3.21086502,143.8,143.74,6.2632]
[1768693204080,3.21086502,143.8,143.74,9.53754153]
[1768693219485,9.47086502,143.82,143.75,3.27434153]
[1768693219689,9.47086502,143.82,143.76,3.27434153]
[1768693219885,3.21086502,143.82,143.77,1.73409824]
[1768693220088,3.21086502,143.82,143.77,5.00843977]
[1768693222193,3.21086502,143.82,143.77,3.27434153]
[1768693223889,9.47096502,143.82,143.77,3.27434153]
[1768693251815,9.47096502,143.82,143.78,0.04566353]
[1768693260616,3.04022274,143.84,143.78,3.12148466]
[1768693261725,3.04022274,143.84,143.78,4.85558741]
[1768693262921,3.04022274,143.84,143.79,3.07582113]
[1768693269932,9.29822274,143.87,143.8,3.07582113]
[1768693270531,9.29822274,143.87,143.81,3.07582113]
[1768693270830,3.04022274,143.86,143.81,3.07582113]
[1768693277536,3.04022274,143.86,143.81,9.33612113]
[1768693298149,3.04022274,143.86,143.81,3.07582113]
[1768693298347,3.21508705,143.85,143.79,3.10038956]
[1768693298946,4.9491898,143.84,143.77,9.36218956]
[1768693299146,4.9491898,143.84,143.78,3.10038956]
[1768693301355,3.21508705,143.84,143.78,3.10038956]
[1768693303554,3.21508705,143.84,143.78,9.36198956]
[1768693304258,3.21508705,143.86,143.8,3.10038956]
[1768693305862,3.21508705,143.86,143.8,9.36108956]
[1768693319369,3.21508705,143.86,143.8,3.10038956]
[1768693319370,3.00164541,143.85,143.8,3.10038956]
[1768693326674,9.25934541,143.88,143.8,3.10038956]
[1768693326874,3.00164541,143.87,143.8,3.10038956]
[1768693342498,3.00164541,143.87,143.8,9.36108956]
[1768693346200,3.00164541,143.87,143.81,3.05763874]
[1768693380220,3.00164541,143.87,143.81,9.31793874]
[1768693380422,1.73310367,143.89,143.82,3.22859824]
[1768693380621,4.75775166,143.89,143.82,3.22859824]
[1768693380824,4.75775166,143.89,143.83,0.05222825]
[1768693381022,3.02464799,143.88,143.83,0.05222825]
[1768693382228,3.02464799,143.88,143.83,3.28082649]
[1768693385131,11.01435166,143.9,143.83,3.28082649]
[1768693391444,3.02464799,143.89,143.83,3.28082649]
[1768693392140,3.02464799,143.89,143.84,3.22859824]
[1768693395641,4.75775166,143.89,143.84,3.22859824]
[1768693396747,3.02464799,143.89,143.84,3.22859824]
[1768693396946,4.75775166,143.89,143.84,3.22859824]
[1768693414960,11.01475166,143.89,143.84,3.22859824]
[1768693415460,9.28164799,143.89,143.84,3.22859824]
[1768693416963,6.257,143.89,143.84,3.22859824]
[1768693429571,9.45167973,143.89,143.84,3.22859824]
[1768693472913,3.16546465,143.88,143.83,0.05222825]
[1768693500536,1.73254475,143.86,143.79,8.62626382]
[1768693500721,2.99518504,143.85,143.78,8.62626382]
[1768693500926,2.99518504,143.85,143.77,11.69015733]
[1768693501432,2.99518504,143.84,143.77,3.06389351]
[1768693501623,2.99518504,143.83,143.76,8.62626382]
[1768693501827,1.73254475,143.82,143.75,3.06389351]
[1768693502027,2.99518504,143.81,143.75,3.06389351]
[1768693512730,0.05301719,143.82,143.77,3.06389351]
[1768693513340,2.99518504,143.83,143.77,3.06389351]
[1768693513639,2.99518504,143.83,143.78,3.06389351]
[1768693513846,4.72772979,143.85,143.78,3.06389351]
[1768693518648,4.72772979,143.85,143.78,9.32549351]
[1768693519843,2.99518504,143.85,143.78,9.32549351]
[1768693529256,2.99518504,143.85,143.79,3.21320768]
[1768693547669,3.27334128,143.83,143.77,3.16604422]
[1768693567586,3.27334128,143.83,143.77,9.42814422]
[1768693585201,3.27237817,143.82,143.75,9.26561617]
[1768693585392,8.42925781,143.81,143.75,9.26561617]
[1768693585691,3.27237817,143.81,143.75,9.26561617]
[1768693589903,3.27237817,143.81,143.76,3.00291617]
[1768693617232,3.27237817,143.81,143.74,3.1363103]
[1768693618928,3.27237817,143.81,143.75,3.1363103]
[1768693621637,3.27237817,143.81,143.75,9.3990103]
[1768693621833,3.03523451,143.83,143.76,3.1363103]
[1768693622433,5.17154727,143.82,143.76,3.1363103]
[1768693622640,3.03523451,143.83,143.76,3.1363103]
[1768693622840,5.17308059,143.82,143.76,3.1363103]
[1768693623041,3.03523451,143.83,143.76,3.1363103]
[1768693623243,5.17306748,143.82,143.76,3.1363103]
[1768693623443,3.03523451,143.83,143.76,3.1363103]
[1768693624346,3.03523451,143.83,143.77,3.1363103]
[1768693626936,3.03523451,143.83,143.77,4.87068027]
[1768693627441,5.17694796,143.82,143.77,4.87068027]
[1768693627641,3.03523451,143.83,143.77,4.87068027]
[1768693627842,5.17694796,143.82,143.77,4.87068027]
[1768693628043,3.03523451,143.83,143.77,4.87068027]
[1768693628344,5.17694796,143.82,143.77,4.87068027]
[1768693628543,3.03523451,143.83,143.77,4.87068027]
[1768693628848,5.17807724,143.82,143.77,4.87068027]
[1768693629144,3.03523451,143.83,143.77,4.87068027]
[1768693629347,5.17807724,143.82,143.77,4.87068027]
[1768693629545,3.03523451,143.83,143.77,4.87068027]
[1768693629744,5.17953864,143.82,143.77,4.87068027]
[1768693629947,3.03523451,143.83,143.77,4.87068027]
[1768693630146,5.17953864,143.82,143.77,4.87068027]
[1768693630345,3.03523451,143.83,143.77,4.87068027]
[1768693630539,5.17934906,143.82,143.77,4.87068027]
[1768693630738,3.03523451,143.83,143.77,4.87068027]
[1768693630935,5.17934906,143.82,143.77,4.87068027]
[1768693631238,3.03523451,143.83,143.77,4.87068027]
[1768693631441,5.17926852,143.82,143.77,4.87068027]
[1768693631638,3.03523451,143.83,143.77,4.87068027]
[1768693631848,5.17926852,143.82,143.77,4.87068027]
[1768693632047,3.03523451,143.83,143.77,4.87068027]
[1768693632347,5.17929477,143.82,143.77,4.87068027]
[1768693632545,3.03523451,143.83,143.77,4.87068027]
[1768693632747,5.17923969,143.82,143.77,4.87068027]
[1768693632945,3.03523451,143.83,143.77,4.87068027]
[1768693633145,5.17923969,143.82,143.77,4.87068027]
[1768693633347,3.03523451,143.83,143.77,4.87068027]
[1768693633547,5.17939063,143.82,143.77,4.87068027]
[1768693633747,3.03523451,143.83,143.77,4.87068027]
[1768693633947,5.17925579,143.82,143.77,4.87068027]
[1768693634241,3.03523451,143.83,143.77,1.73436997]
[1768693634439,5.17927766,143.82,143.78,3.1363103]
[1768693634637,3.03523451,143.83,143.78,3.1363103]
[1768693634941,5.17934428,143.82,143.78,3.1363103]
[1768693635137,3.03523451,143.83,143.78,3.1363103]
[1768693635337,5.17934428,143.82,143.78,3.1363103]
[1768693635540,3.03523451,143.83,143.78,3.1363103]
[1768693635748,5.17911001,143.82,143.78,3.1363103]
[1768693635949,3.03523451,143.83,143.78,3.1363103]
[1768693636154,5.17909688,143.82,143.78,3.1363103]
[1768693636338,3.03523451,143.83,143.78,3.1363103]
[1768693636542,5.17899664,143.82,143.78,3.1363103]
[1768693636841,3.03523451,143.83,143.78,3.1363103]
[1768693637045,5.17899664,143.82,143.78,3.1363103]
[1768693637342,3.03523451,143.83,143.78,3.1363103]
[1768693637538,5.17890704,143.82,143.78,3.1363103]
[1768693637743,3.03523451,143.83,143.78,3.1363103]
[1768693637939,5.17890704,143.82,143.78,3.1363103]
[1768693638144,3.03523451,143.83,143.78,3.1363103]
[1768693638349,5.17890704,143.82,143.78,3.1363103]
[1768693638647,3.03523451,143.83,143.78,3.1363103]
[1768693638849,5.17883013,143.82,143.78,3.1363103]
[1768693639048,3.03523451,143.83,143.78,3.1363103]
[1768693639252,5.17886075,143.82,143.78,3.1363103]
[1768693639556,3.03523451,143.83,143.78,3.1363103]
[1768693639747,5.17872967,143.82,143.78,3.1363103]
[1768693639948,3.03523451,143.83,143.78,3.1363103]
[1768693640149,5.17869904,143.82,143.78,3.1363103]
[1768693640351,3.03523451,143.83,143.78,3.1363103]
[1768693640548,5.17837565,143.82,143.78,3.1363103]
[1768693640747,3.03523451,143.83,143.78,3.1363103]
[1768693640949,5.17864529,143.82,143.78,3.1363103]
[1768693641150,3.03523451,143.83,143.78,3.1363103]
[1768693641353,5.17864529,143.82,143.78,3.1363103]
[1768693641551,3.03523451,143.83,143.78,3.1363103]
[1768693641849,5.17863162,143.82,143.78,3.1363103]
[1768693642050,3.03523451,143.83,143.78,3.1363103]
[1768693642251,5.1786316,143.82,143.78,3.1363103]
[1768693642454,3.03523451,143.83,143.78,3.1363103]
[1768693642656,5.17867524,143.82,143.78,3.1363103]
[1768693642953,3.03523451,143.83,143.78,3.1363103]
[1768693643153,5.17868836,143.82,143.78,3.1363103]
[1768693643355,3.03523451,143.83,143.78,3.1363103]
[1768693643551,5.17863772,143.82,143.78,3.1363103]
[1768693643752,3.03523451,143.83,143.78,3.1363103]
[1768693643954,5.17863772,143.82,143.78,3.1363103]
[1768693644161,3.03523451,143.83,143.78,3.1363103]
[1768693644348,5.17863772,143.82,143.78,3.1363103]
[1768693644548,3.03523451,143.83,143.78,3.1363103]
[1768693644753,5.17884415,143.82,143.78,3.1363103]
[1768693645051,3.03523451,143.83,143.78,3.1363103]
[1768693645259,5.17502148,143.82,143.78,3.1363103]
[1768693645462,3.03523451,143.83,143.78,3.1363103]
[1768693645760,5.17497156,143.82,143.78,3.1363103]
[1768693645947,3.03523451,143.83,143.78,3.1363103]
[1768693646146,5.17827011,143.82,143.78,3.1363103]
[1768693646359,3.03523451,143.83,143.78,3.1363103]
[1768693646562,5.17836908,143.82,143.78,3.1363103]
[1768693646759,3.03523451,143.83,143.78,3.1363103]
[1768693646960,5.17865161,143.82,143.78,3.1363103]
[1768693647258,3.03523451,143.83,143.78,3.1363103]
[1768693647459,5.17862688,143.82,143.78,3.1363103]
[1768693647658,3.03523451,143.83,143.78,3.1363103]
[1768693647862,5.17862688,143.82,143.78,3.1363103]
[1768693648055,3.03523451,143.83,143.78,3.1363103]
[1768693648256,5.17862688,143.82,143.78,3.1363103]
[1768693648457,3.03523451,143.83,143.78,3.1363103]
[1768693648657,5.17861451,143.82,143.78,3.1363103]
[1768693648858,3.03523451,143.83,143.78,3.1363103]
[1768693649058,5.17861451,143.82,143.78,3.1363103]
[1768693649261,3.03523451,143.83,143.78,3.1363103]
[1768693649456,5.1786013,143.82,143.78,3.1363103]
[1768693649659,3.03523451,143.83,143.78,3.1363103]
[1768693649858,5.1786013,143.82,143.78,3.1363103]
[1768693650060,3.03523451,143.83,143.78,3.1363103]
[1768693650359,5.1786013,143.82,143.78,3.1363103]
[1768693650558,3.03523451,143.83,143.78,3.1363103]
[1768693650758,5.17897312,143.82,143.78,3.1363103]
[1768693650963,3.03523451,143.83,143.78,3.1363103]
[1768693651164,5.1805177,143.82,143.78,3.1363103]
[1768693651365,3.03523451,143.83,143.78,3.1363103]
[1768693651567,5.18054222,143.82,143.78,3.1363103]
[1768693651765,3.03523451,143.83,143.78,3.1363103]
[1768693651967,5.18054222,143.82,143.78,3.1363103]
[1768693652167,3.03523451,143.83,143.78,3.1363103]
[1768693652367,5.18055148,143.82,143.78,3.1363103]
[1768693652570,3.03523451,143.83,143.78,3.1363103]
[1768693652761,5.17993507,143.82,143.78,3.1363103]
[1768693652956,3.03523451,143.83,143.78,3.1363103]
[1768693653162,5.17993942,143.82,143.78,3.1363103]
[1768693653369,3.03523451,143.83,143.78,3.1363103]
[1768693655270,5.17977681,143.82,143.78,3.1363103]
[1768693655471,3.03523451,143.83,143.78,3.1363103]
[1768693655671,5.17983442,143.82,143.78,3.1363103]
[1768693655870,3.03523451,143.83,143.78,3.1363103]
[1768693656066,5.17980834,143.82,143.78,3.1363103]
[1768693656266,3.03523451,143.83,143.78,3.1363103]
[1768693656565,5.17994336,143.82,143.78,3.1363103]
[1768693656767,3.03523451,143.83,143.78,3.1363103]
[1768693656962,5.17994336,143.82,143.78,3.1363103]
[1768693657172,3.03523451,143.83,143.78,3.1363103]
[1768693657370,5.17998366,143.82,143.78,3.1363103]
[1768693657570,3.03523451,143.83,143.78,3.1363103]
[1768693657772,5.18006297,143.82,143.78,3.1363103]
[1768693657965,3.03523451,143.83,143.78,3.1363103]
[1768693658166,5.18006297,143.82,143.78,3.1363103]
[1768693658465,3.03523451,143.83,143.78,3.1363103]
[1768693658665,5.18018552,143.82,143.78,3.1363103]
[1768693658872,3.03523451,143.83,143.78,3.1363103]
[1768693659169,5.18020298,143.82,143.78,3.1363103]
[1768693659366,3.03523451,143.83,143.78,3.1363103]
[1768693662373,5.18161062,143.82,143.78,3.1363103]
[1768693662576,3.03523451,143.83,143.78,3.1363103]
[1768693663375,5.1824195,143.82,143.78,3.1363103]
[1768693663570,3.03523451,143.83,143.78,3.1363103]
[1768693663871,5.1824195,143.82,143.78,3.1363103]
[1768693664077,3.03523451,143.83,143.78,3.1363103]
[1768693664374,5.1824195,143.82,143.78,3.1363103]
[1768693664672,3.03523451,143.83,143.78,3.1363103]
[1768693664871,5.18297887,143.82,143.78,3.1363103]
[1768693665075,3.03523451,143.83,143.78,3.1363103]
[1768693665275,5.18297887,143.82,143.78,3.1363103]
[1768693665573,3.19445938,143.85,143.78,3.1363103]
[1768693665877,5.183306,143.84,143.78,3.1363103]
[1768693666173,5.183306,143.83,143.78,3.1363103]
[1768693666371,3.19445938,143.85,143.78,3.1363103]
[1768693666573,5.18353383,143.84,143.78,3.1363103]
[1768693666771,9.45325938,143.85,143.78,3.1363103]
[1768693666972,5.18369843,143.84,143.78,3.1363103]
[1768693667174,9.45325938,143.85,143.78,3.1363103]
[1768693667366,5.18386644,143.84,143.79,3.1750595]
[1768693667674,3.19445938,143.85,143.79,3.1750595]
[1768693667873,5.18160104,143.84,143.79,3.1750595]
[1768693668175,3.19445938,143.85,143.79,3.1750595]
[1768693668377,4.92882935,143.87,143.79,3.1750595]
[1768693668678,8.37548925,143.86,143.79,3.1750595]
[1768693668875,5.18102987,143.85,143.79,3.1750595]
[1768693675879,5.18102987,143.85,143.8,3.24893422]
[1768693676883,3.19445938,143.86,143.8,3.24893422]
[1768693692293,3.19445938,143.86,143.81,3.24893422]
[1768693692794,11.02899311,143.88,143.81,3.24893422]
[1768693693002,5.16562284,143.87,143.81,3.24893422]
[1768693693298,11.02899311,143.88,143.81,3.24893422]
[1768693693596,5.16552265,143.87,143.81,3.24893422]
[1768693693792,11.02899311,143.88,143.81,3.24893422]
[1768693694092,5.16552265,143.87,143.81,3.24893422]
[1768693694396,3.03800019,143.87,143.81,3.24893422]
[1768693699397,9.29630019,143.86,143.81,3.24893422]
[1768693699695,3.03800019,143.83,143.77,3.24893422]
[1768693702898,3.16386314,143.81,143.75,3.25841261]
[1768693710111,4.89725606,143.8,143.73,3.25841261]
[1768693711412,3.16386314,143.8,143.73,3.25841261]
[1768693722720,3.24264737,143.79,143.73,3.25841261]
[1768693730525,9.50394737,143.79,143.73,3.25841261]
[1768693730819,3.24264737,143.78,143.73,3.25841261]
[1768693731025,3.24264737,143.78,143.72,3.08807859]
[1768693761459,3.24264737,143.78,143.72,9.35237859]
[1768693769067,3.25024591,143.76,143.7,9.55293626]
[1768693779568,3.25024591,143.76,143.69,262.98]
[1768693779776,3.25024591,143.76,143.69,3.27225654]
[1768693779777,1.73522261,143.75,143.69,3.27225654]
[1768693779966,4.86797986,143.75,143.69,3.27225654]
[1768693782176,3.13275725,143.75,143.69,3.27225654]
[1768693804289,3.01719932,143.77,143.7,4.79800241]
[1768693804493,5.17346517,143.76,143.7,4.79800241]
[1768693804690,3.01719932,143.77,143.7,4.79800241]
[1768693804894,3.01719932,143.75,143.7,3.06197133]
[1768693812602,3.01719932,143.77,143.7,3.06197133]
[1768693812793,8.19202409,143.76,143.7,3.06197133]
[1768693812998,3.01719932,143.76,143.7,3.06197133]
[1768693824312,3.10778554,143.78,143.72,3.12603227]
[1768693824517,5.18155039,143.77,143.74,3.12603227]
[1768693824820,3.10778554,143.79,143.74,3.12603227]
[1768693825019,5.18184945,143.78,143.74,3.12603227]
[1768693825220,3.10778554,143.79,143.74,3.12603227]
[1768693825516,5.17634118,143.78,143.74,3.12603227]
[1768693825711,3.10778554,143.79,143.74,3.12603227]
[1768693825917,1.73603108,143.82,143.77,4.86206335]
[1768693825918,3.10778554,143.82,143.77,4.86206335]
[1768693826312,1.73603108,143.87,143.77,4.86206335]
[1768693826313,3.10778554,143.86,143.77,4.86206335]
[1768693827423,3.10778554,143.84,143.77,4.86206335]
[1768693827621,3.10778554,143.84,143.77,1.73603108]
[1768693828921,3.10778554,143.83,143.77,1.73603108]
[1768693830320,3.10778554,143.83,143.77,4.86206335]
[1768693830820,3.10778554,143.83,143.79,1.73603108]
[1768693831815,3.10778554,143.85,143.79,4.86206335]
[1768693832013,3.10778554,143.85,143.79,3.12603227]
[1768693832721,3.10778554,143.84,143.79,3.12603227]
[1768693838924,3.1916578,143.85,143.8,2.98923228]
[1768693844133,3.1916578,143.83,143.76,2.98923228]
[1768693845639,9.4513578,143.83,143.76,2.98923228]
[1768693845933,9.4513578,143.83,143.77,2.98923228]
[1768693854742,6.2601,143.82,143.77,2.98923228]
[1768693858545,9.30345746,143.82,143.75,3.16591946]
[1768693858732,3.04335746,143.81,143.75,3.16591946]
[1768693866047,6.2601,143.82,143.75,3.16591946]
[1768693866653,6.2601,143.82,143.75,4.90011184]
[1768693866850,6.2601,143.82,143.76,3.16591946]
[1768693869954,3.04335746,143.83,143.77,3.16591946]
[1768693870154,7.99369238,143.84,143.77,3.16591946]
[1768693871957,11.03704984,143.84,143.77,3.16591946]
[1768693873155,9.30285746,143.84,143.77,3.16591946]
[1768693884562,3.30385689,143.83,143.77,3.16591946]
[1768693885462,9.56345689,143.83,143.77,3.16591946]
[1768693885663,3.30385689,143.82,143.77,3.16591946]
[1768693894067,3.30385689,143.82,143.76,6.2625]
[1768693895374,3.30385689,143.82,143.76,9.30001545]
[1768693902081,3.30385689,143.82,143.77,3.03751545]
[1768693905183,6.2596,143.83,143.77,3.03751545]
[1768693907681,3.09192923,143.84,143.77,3.03751545]
[1768693908078,9.35102923,143.84,143.77,3.03751545]
[1768693913382,3.23725347,143.82,143.76,8.63068817]
[1768693913584,3.23725347,143.82,143.75,3.26955689]
[1768693914788,9.49775347,143.81,143.75,3.26955689]
[1768693915684,3.23725347,143.81,143.75,3.26955689]
[1768693918883,3.23725347,143.8,143.75,3.26955689]
[1768693928388,9.49735347,143.82,143.76,3.26955689]
[1768693928789,3.23725347,143.82,143.76,3.26955689]
[1768693929697,3.23725347,143.82,143.77,3.26955689]
[1768693936704,6.2596,143.83,143.77,3.26955689]
[1768693936705,9.49645347,143.84,143.77,11.26618804]
[1768693938803,4.97178462,143.85,143.78,3.26955689]
[1768693940202,3.23725347,143.85,143.78,3.26955689]
[1768693942808,3.23725347,143.85,143.79,3.07877749]
[1768693943012,3.23725347,143.85,143.8,3.07877749]
[1768693943512,9.3832147,143.87,143.8,3.07877749]
[1768693946412,3.1253147,143.87,143.81,3.07877749]
[1768693950107,11.11714585,143.89,143.82,3.07877749]
[1768693950307,9.3826147,143.89,143.82,3.07877749]
[1768693951909,9.3826147,143.89,143.82,9.33857749]
[1768693952213,9.3826147,143.89,143.83,3.07877749]
[1768693953812,3.1253147,143.89,143.83,3.07877749]
[1768693965813,3.02466812,143.87,143.81,3.24478759]
[1768693966523,4.75919927,143.86,143.79,3.24478759]
[1768693967924,4.75919927,143.86,143.79,9.50598759]
[1768693971624,3.02466812,143.86,143.8,3.24478759]
[1768693982326,3.02466812,143.86,143.8,9.50548759]
[1768693982533,3.02466812,143.86,143.81,3.11472286]
[1768693988838,4.80227329,143.88,143.82,3.11472286]
[1768693989039,3.06922804,143.87,143.82,3.11472286]
[1768693990532,3.06922804,143.89,143.83,3.11472286]
[1768693993437,3.06922804,143.89,143.83,9.37422286]
[1768693995646,3.06922804,143.89,143.84,3.11472286]
[1768694002447,3.06922804,143.89,143.82,3.17589322]
[1768694002653,3.23692252,143.88,143.82,3.17589322]
[1768694003954,3.23692252,143.88,143.82,9.43579322]
[1768694004257,3.23692252,143.88,143.83,3.17589322]
[1768694006857,3.23692252,143.88,143.82,6.2599]
[1768694007459,3.23692252,143.88,143.82,9.43579322]
[1768694011658,3.23692252,143.86,143.8,3.17589322]
[1768694012761,3.23692252,143.86,143.8,9.43669322]
[1768694018263,3.23692252,143.86,143.81,3.27053355]
[1768694022466,3.23692252,143.86,143.8,6.2608]
[1768694022666,3.23692252,143.86,143.8,9.53133355]
[1768694023962,3.23692252,143.86,143.81,3.27053355]
[1768694027480,3.23692252,143.86,143.8,6.2608]
[1768694028473,3.23692252,143.86,143.8,9.53133355]
[1768694032473,3.20016558,143.83,143.75,3.12053624]
[1768694032675,3.20016558,143.81,143.75,3.12053624]
[1768694033969,3.20016558,143.81,143.73,7.99664525]
[1768694033970,3.20016558,143.81,143.73,3.12053624]
[1768694035775,3.20016558,143.8,143.73,3.12053624]
[1768694037471,3.20016558,143.8,143.74,3.12053624]
[1768694039679,3.20016558,143.82,143.75,1.73461709]
[1768694039871,3.20016558,143.82,143.75,3.12053624]
[1768694040177,3.20016558,143.82,143.76,1.73461709]
[1768694041375,3.20016558,143.82,143.75,3.12053624]
[1768694045479,3.20016558,143.81,143.73,3.12053624]
[1768694046277,3.20016558,143.81,143.72,7.99881709]
[1768694046278,3.20016558,143.79,143.72,6.2642]
[1768694046676,1.73461709,143.78,143.72,6.2642]
[1768694046883,4.93478267,143.78,143.72,9.38473624]
[1768694051482,1.73461709,143.78,143.73,3.12053624]
[1768694058692,3.20016558,143.77,143.71,3.12053624]
[1768694063195,3.20016558,143.77,143.71,4.85515333]
[1768694065894,3.20016558,143.77,143.71,3.12053624]
[1768694066087,3.20016558,143.77,143.71,4.85515333]
[1768694074101,3.27891172,143.76,143.69,3.29480956]
[1768694075012,3.27891172,143.75,143.69,3.29480956]
[1768694075216,3.27891172,143.74,143.69,3.29480956]
[1768694076917,3.27891172,143.74,143.67,3.29480956]
[1768694077920,3.27891172,143.73,143.67,3.29480956]
[1768694113651,3.19910376,143.75,143.69,3.06288138]
[1768694113842,3.19910376,143.77,143.71,3.06288138]
[1768694115449,3.19910376,143.77,143.71,4.79940871]
[1768694118258,3.19910376,143.77,143.71,3.06288138]
[1768694134070,2.99559485,143.76,143.71,3.06288138]
[1768694139179,6.2622,143.77,143.71,3.06288138]
[1768694139679,9.25779485,143.77,143.71,3.06288138]
[1768694157595,2.99559485,143.77,143.71,11.06400871]
[1768694161503,2.99559485,143.77,143.71,11.06270611]
[1768694167505,2.99559485,143.77,143.72,3.05867631]
[1768694167710,9.55072881,143.79,143.72,3.05867631]
[1768694168012,5.24096806,143.78,143.72,3.05867631]
[1768694168211,9.55072881,143.79,143.72,3.05867631]
[1768694168411,8.52973583,143.78,143.72,3.05867631]
[1768694168711,3.28922881,143.78,143.72,3.05867631]
[1768694171409,97.3364,143.89,143.77,3.05867631]
[1768694171615,6.97639552,143.88,143.79,1.73522473]
[1768694171913,5.24117079,143.87,143.79,4.79390104]
[1768694172910,6.2583,143.86,143.79,4.79390104]
[1768694173510,7.58965711,143.86,143.79,4.79390104]
[1768694183821,9.32488184,143.86,143.79,3.05867631]
[1768694184726,7.58965711,143.86,143.79,3.05867631]
[1768694184926,9.32488184,143.86,143.79,3.05867631]
[1768694185829,7.58965711,143.86,143.79,3.05867631]
[1768694186021,9.32488184,143.86,143.79,3.05867631]
[1768694188728,7.58965711,143.86,143.79,3.05867631]
[1768694188929,9.32488184,143.86,143.79,3.05867631]
[1768694191434,1.32838236,143.83,143.76,9.53124763]
[1768694191630,1.73522473,143.82,143.76,9.53124763]
[1768694191833,1.73522473,143.82,143.76,3.26894763]
[1768694191834,3.06360709,143.82,143.76,3.26894763]
[1768694195841,1.32838236,143.82,143.76,3.26894763]
[1768694196042,3.06360709,143.82,143.76,3.26894763]
[1768694202643,1.32838236,143.82,143.77,3.18226164]
[1768694210147,1.73522473,143.84,143.77,3.18226164]
[1768694210354,3.06496646,143.84,143.77,3.18226164]
[1768694216954,9.32406646,143.84,143.77,3.18226164]
[1768694221159,9.32406646,143.84,143.75,1.73522473]
[1768694221160,1.3334765,143.81,143.75,3.0726711]
[1768694221350,1.3334765,143.8,143.75,3.0726711]
[1768694222556,3.06818316,143.8,143.75,3.0726711]
[1768694229057,1.3334765,143.8,143.75,3.0726711]
[1768694229256,3.06818316,143.8,143.75,3.0726711]
[1768694235961,9.32918316,143.8,143.75,3.0726711]
[1768694238763,3.06818316,143.8,143.75,3.0726711]
[1768694248969,3.06925609,143.82,143.75,3.0726711]
[1768694249567,1.33454943,143.81,143.75,3.0726711]
[1768694250275,1.73470666,143.82,143.76,3.06536271]
[1768694250475,1.33454943,143.83,143.76,3.06536271]
[1768694260878,1.33454943,143.83,143.77,3.08445799]
[1768694261181,9.32437269,143.84,143.77,3.08445799]